Cogmind - Beta 17 @@@ ROGUE MODE // 2026.06.27 @ 20:39:05 Player: THN-L0C Result: Destroyed by G-47 Trooper with Particle Gun Performance ------------- Evolutions (0) 0 Regions Visited (2) 400 Robots Destroyed (15) 75 Value Destroyed (416) 416 Prototype IDs (17) 340 Alien Tech Used (0) 0 Bonus (0) 0 TOTAL SCORE: 1231 Bonus ------- None Cogmind --------- Core Integrity 0/250 Matter 300/300 Energy 100/100 System Corruption 0% Temperature Cool (9) Movement Rolling (105) Ox1 Location -10/Subcaves Parts ------- > --- POWER (1) -------- (None) > --- PROPULSION (2) --- Spiked Treads (fused) Armored Wheel (fused) > --- UTILITY (2) ------ Medium Storage Unit Self-contained Transmogrifier > --- WEAPON (2) ------- Riot Gun Katana (fused) > --- INVENTORY (10) --- Improved Terrain Scanner Seismic Detector Gun Armor Scrap Shield Subdweller Beam Cannon Heavy Assault Rifle Plasma Cutter Multitool Shrapnel Trap Peak State ------------ > --- POWER ------------ Ion Engine > --- PROPULSION ------- Light Treads Improved Treads > --- UTILITY ---------- Medium Storage Unit Self-contained Transmogrifier > --- WEAPON ----------- Katana Ripteeth > --- INVENTORY -------- Compact Wheel Large Matter Pod Improved Terrain Scanner Seismic Detector Gun Armor Heavy Assault Rifle Subdweller Shrapnel Launcher Plasma Cutter Multitool Shrapnel Trap [Rating: 23] Favorites ----------- Power Ion Engine Engine Ion Engine Power Core Light Nuclear Core Propulsion Light Treads Treads Light Treads Wheel Compact Wheel Hover Unit Hover Unit Utility Medium Storage Unit Device Seismic Detector Storage Medium Storage Unit Protection Light Armor Plating Weapon Grenade Launcher Energy Gun Arc Projector Energy Cannon Subdweller Beam Cannon Ballistic Gun Assault Rifle Launcher Grenade Launcher Special Weapon Mining Laser Slashing Weapon Ripteeth Build | -11 -10 -10 ------- Run | Yrd Mat Sub Slots Evolved . | . . . Power . | . . . Propulsion . | . . . Utility . | . . . Weapon . | . . . Parts Attached 20 | 5 7 8 Power 3 | . 3 . Engine 2 | . 2 . Core 1 | . 1 . Reactor . | . . . Propulsion 3 | 2 . 1 Treads 2 | 2 . . Leg . | . . . Wheel 1 | . . 1 Hover . | . . . Flight . | . . . Utility 7 | 1 2 4 Device 4 | . 1 3 Storage 2 | 1 1 . Processor . | . . . Hackware . | . . . Protection 1 | . . 1 Artifact . | . . . Weapon 7 | 2 2 3 Energy Gun 1 | . . 1 Energy Cannon 1 | . . 1 Ballistic Gun 2 | 2 . . Ballistic Cannon . | . . . Launcher 1 | . . 1 Special Weapon 2 | . 2 . Impact Weapon . | . . . Slashing Weapon . | . . . Piercing Weapon . | . . . Special Melee Weapon . | . . . Unidentified Prototypes 1 | . . 1 Parts Lost 3 | . . 3 Power 1 | . . 1 Propulsion 1 | . . 1 Utility . | . . . Weapon 1 | . . 1 Highest Loss Streak 2 | . . 2 To Critical Strikes . | . . . Average Backups 8 | 5 9 8 Power . | 1 . . Propulsion 1 | 1 2 1 Utility 4 | 1 4 4 Weapon 1 | . 1 1 Tool/Special . | . . . Unused Backups 15 | . 4 11 Power . | . . . Propulsion 3 | . 2 1 Utility 8 | . 2 6 Weapon 2 | . . 2 Tool/Special 2 | . . 2 Average Slot Usage (%) 99 | . 95 99 Engine 12 | . 9 13 Treads 27 | . 28 26 Device 13 | . 13 13 Storage 14 | . 14 14 Energy Gun 1 | . . 1 Energy Cannon 6 | . . 7 Ballistic Gun 8 | . 20 5 Launcher 7 | . . 9 Special Weapon 2 | . 7 1 Slashing Weapon 2 | . . 2 Peak Build Rating 23 | 6 10 23 Average Rating 11 | 4 7 13 On Entrance 4 | . 6 8 Avg Prop Armor Cover (%) 7 | . . 7 Naked Turns . | . . . Heaviest Build 29 | 8 19 29 Greatest Support 43 | 40 40 43 Greatest Overweight (x) 1 | . . 1 Average Overweight (x) . | . . . Largest Inventory Capacity 10 | 8 10 10 Average Capacity 9 | 7 9 10 Most Carried 10 | 8 10 10 Average Carried 9 | 5 9 9 Final Capacity 10 | 8 10 10 Final Carried 10 | 8 10 10 Transmogrified Parts 9 | . . 9 Integrity Recovered 191 | . . 191 Class Distribution -------------------- 100% | Mutant Dominant Class ---------------- Mutant | -10/Materials Mutant | -10/Subcaves Resources | -11 -10 -10 ----------- Run | Yrd Mat Sub Matter Collected 939 | 327 219 393 Remotely . | . . . Salvage Created 564 | 111 169 284 Parts 39 | 14 10 15 Haulers Intercepted . | . . . Recyclers Shooed . | . . . Parts Field Recycled . | . . . Retrieved Matter . | . . . Parts Self-Destructed 9 | . . 9 Prevented . | . . . Parts Restored . | . . . Kills | -11 -10 -10 ------- Run | Yrd Mat Sub Combat Hostiles Destroyed 10 | . 4 6 Melee 1 | . . 1 Guns 5 | . 4 1 Cannons 4 | . . 4 Classes Destroyed 6 | 3 1 2 Worker 2 | 2 . . Tunneler 2 | 2 . . Recycler 1 | 1 . . Grunt 4 | . 4 . Sentry 1 | . . 1 Subdweller 5 | . . 5 Best Kill Streak 3 | 2 3 2 Combat Bots Only 3 | . 3 2 Max Kills in Single Turn 1 | 1 1 1 Gunslinging . | . . . Exploded . | . . . Melee 1 | . . 1 Uniques/NPCs Destroyed . | . . . Combat | -11 -10 -10 -------- Run | Yrd Mat Sub Hostile Shots Fired 55 | . 15 40 Missed 14 | . 4 10 Hits 41 | . 11 30 Projectile 41 | . 11 30 AOE 1 | . . 1 Damage Taken 1001 | . 139 862 Core 253 | . 40 213 Absorbed by Shields . | . . . Core Remaining (%) 100 | 100 . . Volleys Fired 94 | 15 52 27 Largest 2 | 2 2 2 Hottest 100 | 40 100 100 Shots Fired 126 | 30 64 32 Gun 66 | 30 24 12 Cannon 15 | . . 15 Launcher 2 | . . 2 Special 43 | . 40 3 Kinetic 64 | 30 24 10 Thermal 58 | . 40 18 Explosive 2 | . . 2 Electromagnetic 2 | . . 2 Robot Hit Streak 17 | 9 17 9 Robot Miss Streak 3 | 3 2 1 Penetration Max . | . . . Secondary Targets . | . . . Shots Hit Robots 72 | 19 19 34 Core Hits 30 | 10 8 12 Critical Kills . | . . . Critical Parts Destroyed 1 | 1 . . Critical Strikes 1 | 1 . . Destroy 1 | 1 . . Melee Attacks 35 | . . 35 Impact . | . . . Slashing 35 | . . 35 Piercing . | . . . Sneak Attacks . | . . . Combat Hostiles . | . . . Follow-up Attacks . | . . . Damage Inflicted 958 | 207 212 539 Guns 481 | 207 204 70 Cannons 278 | . . 278 Explosions . | . . . Melee 191 | . . 191 Ramming 8 | . 8 . Kinetic 481 | 207 204 70 Thermal 278 | . . 278 Explosive . | . . . Electromagnetic . | . . . Impact . | . . . Slashing 191 | . . 191 Piercing . | . . . Highest Corruption . | . . . Average Corruption . | . . . Corruption Purged . | . . . Corruption Blocked . | . . . Overload Shots . | . . . Overflow Damage . | . . . Projectiles . | . . . Explosions . | . . . Melee . | . . . Knockbacks . | . . . Impact . | . . . Kinetic . | . . . Secondary . | . . . Self-Inflicted Damage . | . . . Shots . | . . . Rammed 2 | . 2 . Targets Rammed 2 | . 2 . Kicked . | . . . Crushed . | . . . Highest Temperature 88 | . 88 30 Average Temperature 24 | . 26 11 Received Heat Transfer 237 | . 75 162 Siege Activations . | . . . Martial Activations . | . . . Shielding Activations . | . . . Robots Disrupted . | . . . Combat Hostiles . | . . . Robots Corrupted . | . . . Combat Hostiles . | . . . Parts Fried . | . . . Impact Corruptions . | . . . Robots Melted . | . . . Combat Hostiles . | . . . Parts Melted . | . . . Heat Transferred 370 | . . 370 Parts Sabotaged . | . . . Parts Stolen . | . . . Parts Stripped . | . . . Power Chain Reactions . | . . . Alert | -11 -10 -10 ------- Run | Yrd Mat Sub Maximum Alert Level . | . . . Low Security (%) 100 | 100 100 . Level 1 . | . . . Level 2 . | . . . Level 3 . | . . . Level 4 . | . . . Level 5 . | . . . High Security . | . . . Max Security . | . . . Peak Influence 51 | 10 51 . Initial . | . . . Average 4 | 1 4 . Influence Increases 209 | 25 149 35 Destroy 0b10 Robot/C 100 | . 80 20 Destroy 0b10 Robot/NC 25 | 25 . . Destroy Leader 10 | . 10 . Successful Hack 28 | . 28 . Destroy Structure 16 | . 16 . Lose Combat Pursuer 30 | . 15 15 Influence Decreases 209 | 25 149 35 Time Decay 209 | 25 149 35 Squads Dispatched 1 | . 1 . Investigation 1 | . 1 . Extermination . | . . . Reinforcement . | . . . Assault . | . . . Garrison . | . . . Intercept . | . . . Searches Triggered . | . . . Construction Impeded . | . . . Haulers Reinforced . | . . . Active Scanning Responses . | . . . Cargo Convoy Interrupts . | . . . Stealth | -11 -10 -10 --------- Run | Yrd Mat Sub Distress Signals 2 | . 2 . Communications Jammed . | . . . Distress Signals . | . . . Times Spotted 18 | . 8 10 Peak Tracking Total 4 | . 4 2 Tactical Retreats 2 | . 1 1 Traps | -11 -10 -10 ------- Run | Yrd Mat Sub Traps Triggered 6 | . . 6 Indirectly . | . . . Trap Hack Attempts . | . . . Triggered . | . . . Disarmed . | . . . Reprogrammed . | . . . Reused . | . . . Traps Extracted . | . . . Installed . | . . . Triggered . | . . . Most Traps Carried 1 | . . 1 Machines | -11 -10 -10 ---------- Run | Yrd Mat Sub Machines Disabled 1 | . . 1 Max in Single Turn 1 | . . 1 Machines Repaired . | . . . Machines Dismantled . | . . . Machines Sabotaged . | . . . Overloaded Fab Kills . | . . . Hacking | -11 -10 -10 --------- Run | Yrd Mat Sub Machines Accessed 7 | . 6 1 Terminals 5 | . 5 . Fabricators . | . . . Repair Stations . | . . . Recycling Units 1 | . 1 . Scanalyzers . | . . . Garrison Access . | . . . Total Hacks 23 | . 14 9 Successful 17 | . 8 9 Failed 6 | . 6 . Catastrophic 1 | . 1 . Database Lockouts . | . . . Manual 10 | . 10 . Terminals 13 | . 13 . Fabricators . | . . . Repair Stations . | . . . Recycling Units 1 | . 1 . Scanalyzers . | . . . Garrison Access . | . . . Terminal Hacks 12 | . 3 9 Record 8 | . . 8 Prototype ID Bank 1 | . 1 . Locate Traps 1 | . 1 . Zone Layout 1 | . 1 . Proto ID Catalog 1 | . . 1 Fabricator Hacks . | . . . Repair Station Hacks . | . . . Recycling Unit Hacks 1 | . 1 . Report Inventory 1 | . 1 . Scanalyzer . | . . . Garrison Access Hacks . | . . . Unauthorized Hacks 4 | . 4 . Terminals 4 | . 4 . Botnet 3 | . 3 . Disrupt 1 | . 1 . Fabricators . | . . . Repair Stations . | . . . Recycling Units . | . . . Scanalyzers . | . . . Garrison Access . | . . . Data Cores Recovered . | . . . Used . | . . . Hacking Detections 5 | . 5 . Full Trace Events 1 | . 1 . Feedback Events . | . . . Feedback Blocked . | . . . Robot Schematics Acquired . | . . . Robots Built . | . . . Authchips . | . . . Time . | . . . Total Robot Build Rating . | . . . Part Schematics Acquired . | . . . Parts Built . | . . . Authchips . | . . . Time . | . . . Total Part Build Rating . | . . . Part Studies Acquired . | . . . Parts Repaired . | . . . Time . | . . . Parts Recycled . | . . . Recycled Matter . | . . . Retrieved Matter . | . . . Retrieved Components . | . . . Parts Scanalyzed . | . . . Part Schematics Acquired . | . . . Parts Damaged . | . . . Bothacking | -11 -10 -10 ------------ Run | Yrd Mat Sub Used RIF Installer . | . . . Robots Hacked . | . . . Non-combat . | . . . Combat . | . . . Robot Hacks Applied . | . . . Relay Couplers Released . | . . . Fabnet Peak Effective % . | . . . Robots Rewired . | . . . Allies Hacked . | . . . Hacks Repelled . | . . . Allies | -11 -10 -10 -------- Run | Yrd Mat Sub Total Allies . | . . . Largest Group . | . . . Highest-Rated Group . | . . . Highest-Rated Ally . | . . . Total Orders . | . . . Ally Attacks . | . . . Total Damage . | . . . Kills . | . . . Allies Corrupted . | . . . Allies Melted . | . . . Intel | -11 -10 -10 ------- Run | Yrd Mat Sub Active Infowar (turns) 3931 | . 1147 2784 Terrain 1481 | . . 1481 Seismic 2450 | . 1147 1303 Robot Analysis Total . | . . . Derelict Logs Recovered 1 | . . 1 Drone Launches . | . . . Drone Recoveries . | . . . Exploration | -11 -10 -10 ------------- Run | Yrd Mat Sub Turns Passed 6270 | 230 1173 4867 Spaces Moved 2143 | 103 481 1559 Core 2 | 2 . . Treads 2109 | 101 481 1527 Legs . | . . . Wheels 32 | . . 32 Hover . | . . . Flight . | . . . Fastest Speed 50 | 50 160 100 Average Speed 159 | 157 160 159 Slowest Speed 240 | 160 160 240 Overloaded Moves . | . . . Propulsion Burnouts . | . . . Robots Hopped . | . . . Potential Cave-ins . | . . . Cave-ins Triggered . | . . . Exploration Rate (%) 45 | 5 57 73 Regions Visited 2 Branch Regions 1 Pre-discovered Areas 1 | . . 1 Known Exits Taken . | . . . Unknown Exits Taken 2 | 1 1 . Scrap Searched 7 | . . 7 Spaces Dug 24 | . 16 8 Terrain Destroyed 32 | . 18 14 Melee . | . . . Projectile 19 | . 18 1 AOE 13 | . . 13 Terrain Rammed . | . . . Walls Destroyed . | . . . Machines Disabled . | . . . Actions | -11 -10 -10 --------- Run | Yrd Mat Sub Total 4747 | 142 743 3862 Wait 2390 | 11 184 2195 Move 2141 | 102 480 1559 Hop . | . . . Pick Up 29 | 9 9 11 Fast Attach 5 | 4 . 1 Attach 5 | 1 2 2 Detach . | . . . Swap 30 | . 7 23 Drop 18 | . 7 11 Fire 94 | 15 52 27 Melee 33 | . . 33 Ram . | . . . Kick . | . . . Crush 2 | . 2 . Escape Stasis . | . . . Rewire . | . . . Trap . | . . . Miscellaneous . | . . . Route ------- -11/Scrapyard -10/Materials (discovered 3 exits: [*Mat x2] / *Sub) -10/Subcaves (discovered 1 exit: [*Mat]) History --------- Turn | Location | Event 15 | -11/Scrapyard | Discovered new exit (range 14) 231 | -11/Scrapyard | Entered Materials 316 | -10/Materials | Build established: Mutant 863 | -10/Materials | Discovered new exit (range 16) 1243 | -10/Materials | Discovered new exit (range 13) 1387 | -10/Materials | Discovered new exit (range 3) 1404 | -10/Materials | Entered Subcaves 2260 | -10/Subcaves | Discovered new exit (range 15) 4406 | -10/Subcaves | Core integrity fell below 50% 4459 | -10/Subcaves | Core integrity fell below 20% 4575 | -10/Subcaves | Visited 4L-MR0's lab 4596 | -10/Subcaves | Found Prototype Device 4596 | -10/Subcaves | Identified Sfc. Transmogrifier 5062 | -10/Subcaves | Found Gun Armor 6088 | -10/Subcaves | Learned location of Mines (-10) 6161 | -10/Subcaves | Shifting Twisted Machinery released Sub. Beam Cannon 6162 | -10/Subcaves | Shifting Twisted Machinery released Sub. Beam Cannon 6271 | -10/Subcaves | Destroyed by G-47 Trooper with Particle Gun Last Messages --------------- 06089_ Found 50 Matter. 06093_ Acquired Riot Gun. 06094_ Acquired 10 matter. 06096_ Searching scrap... 06096_ Found Piercing Trap. 06096_ Found Scrap Shield. 06096_ Found 40 Matter. 06100_ Dropped Sub. Shrapnel Launcher. 06100_ Sub. Shrapnel Launcher crushed and broken. 06100_ Acquired Scrap Shield. 06101_ Acquired 10 matter. 06103_ Searching scrap... 06103_ Found Battle Rifle. 06103_ Found 63 Matter. Sub. Beam Cannon falls loose from the Twisted Machinery. 06170_ Dropped Lrg. Matter Pod. 06171_ Acquired Sub. Beam Cannon. 06220_ Sfc. Transmogrifier converts Imp. Treads into Spk. Treads. 06242_ Ion Engine destroyed. 06255_ Sfc. Transmogrifier converts Com. Wheel into Arm. Wheel. Map ----- +----------------------------------------------------+ | ?????????????????????????????????????????????????? | | ?????????????????????????????????????????????????? | | ?????????????????????????????????????????????????? | | ??????????????????????? ???????????????????????? | | ??????????????????????? ???????????????? ???? | | ??????????????????????? ???##???????? ? ?? | | ??????????????????????? #??# ????? | | ??????????????????????? #?# ?????? | | ??????????????????????? ## ? ????? | | ??????????????????????? ????? | | ??????????????????????? #???? | | ???????????????????????# #????? | | ??????????????????????## #?????# | | ??????????????????????# #?# #?????# | | ??????????????????????# ### ###???# | | ??????????????????????# #??## #? | | ??????????????????????# #??# #?? | | ??????????????????????# #### ### | | ??????????????????????# ## ## | | ??????????????????????# ## | | ??????????????????????# ## | | ??????????????????????# #### ### | | ??????????????????????## #??####?# | | ???????????????????????### g #### ###?????? | | ??????????????????????#### #??# ####??? | | ??????????????????????# @g #??# #??? | | ??????????????????????# #?## #??? | | ??????????????????????## ##?# #??? | | ???????????????????????# ##?# #??? | | ???????????????????????# ### ### #??? | | ???#???????????????????## ## #??##??? | | ????????????????????????# ## #??????? | | ???????????????????????# ## #???? | | ???????????????????????## ## #### ##???? | | ??????#?????????????????### #??## ###????? | | #?????????????????????????# #???? #??????? | | #?????????????????????????# #???? #?????? | | ?????#???#????????????????# #???? #????? | | ????????#????????????????# ####???? ##????? | | ???????????????????????? ????????#####?????? | | ?#??#??????????????????## ??????????????????? | | ?#?#????????????????????# ??????????????????? | | ???????????????????????? ??????????????????? | | ???#????????????????????? ??????????????????? | | ??#?????#??????????????????#?#???????????????????? | | ####?????????????????????????????????????????????? | | ###???????????????????????????????????????????? | | ##???????????????????????????????????????????? | | #?#??#???????????????????????????????????????? | | ###???????????????????????????????????????????? | +----------------------------------------------------+ Best States ------------- Heat Dissipation 25 Energy Generation 14 Energy Capacity 250 Matter Stores 300 Matter Capacity 300 Sight Range 16 Terrain Scan Range 16 Terrain Scan Density 10 Armor Coverage 150 Evasion (%) 40 Recoil Reduction 2 Trap Extractor Capacity 4 Item Schematics ----------------- None Robot Schematics ------------------ None Fabricated ------------ Nothing Repaired ---------- Nothing Studied --------- None Alien Tech Used ----------------- None Achievements -------------- None Challenges ------------ None Game ------ Seed ReactiveThermalStick Manual? 0 Play Time 00:35:59 Cumulative 382.6 hours Start 2026.06.27 @ 20:04:44 End 2026.06.27 @ 20:39:05 Sessions 1 Manual Loads 0 Difficulty Rogue Special Mode None Game No. 286 Rogue 286 Adventurer 0 Explorer 0 Win Type - Total 7 Types 3/0/3/1/0/0/0/0/0/0 Lore% 75 Gallery% 71 Achievement% 38 Wizard Run 0 Options --------- Layout 2 ASCII 0 Keyboard 1 Movement Vi Keybinds 0 Fullscreen 2 Font 32/SmallcapsGlow Map View 77x44 Zoom Use 0% Tactical HUD 1 Map Filters NONE Filters NONE Steam 1 RUN: f998659a-8d54-4f17-9c53-4295434ae1a6